Cogmind - Beta 13 @@@ ROGUE MODE // 2024.03.31 @ 07:51:54 Player: catpottery Result: Destroyed by S-27 Virus with Autogun Performance ------------- Evolutions (3) 1500 Regions Visited (4) 800 Robots Destroyed (64) 320 Value Destroyed (1530) 1530 Prototype IDs (5) 100 Alien Tech Used (0) 0 Bonus (22) 22 TOTAL SCORE: 4272 Bonus ------- High Alert Combat Kills 22 Cogmind --------- Core Integrity 0/700 Matter 280/300 Energy 16/160 System Corruption 0% Temperature Cool (0) Movement Core (150) Ox2 Location -7/Factory Parts ------- > --- POWER (2) -------- Light Nuclear Core > --- PROPULSION (2) --- (None) > --- UTILITY (6) ------ Improved Targeting Computer Advanced ECM Suite > --- WEAPON (3) ------- (None) > --- INVENTORY (5) ---- Improved Light Armor Plating Gatling Laser Peak State ------------ > --- POWER ------------ Light Nuclear Core Light Nuclear Core > --- PROPULSION ------- Airjet Airjet > --- UTILITY ---------- Improved Targeting Computer Advanced ECM Suite > --- WEAPON ----------- Precision Beam Rifle Precision Beam Rifle > --- INVENTORY -------- Light Nuclear Core [Rating: 26] Favorites ----------- Power Heavy Ion Engine Engine Heavy Ion Engine Power Core Light Nuclear Core Propulsion Aluminum Leg Leg Aluminum Leg Hover Unit Airjet Flight Unit VTOL Module Utility Weapon Shielding Device ECM Suite Storage Large Matter Pod Processor Improved Targeting Computer Protection Weapon Shielding Weapon Grenade Launcher Energy Gun Heavy EM Pulse Gun Energy Cannon Light EM Pulse Cannon Ballistic Gun Improved Assault Rifle Launcher Grenade Launcher Build | -11 -10 -9 -8 -7 ------- Run | Yrd Mat Mat Mat Fac Slots Evolved 6 | . . 2 2 2 Power 1 | . . . . 1 Propulsion . | . . . . . Utility 4 | . . 2 2 . Weapon 1 | . . . . 1 Parts Attached 54 | 5 4 18 12 15 Power 8 | 1 . 1 . 6 Engine 2 | 1 . 1 . . Core 6 | . . . . 6 Reactor . | . . . . . Propulsion 10 | 2 . 2 2 4 Treads . | . . . . . Leg 5 | 2 . 2 1 . Wheel . | . . . . . Hover 2 | . . . . 2 Flight 3 | . . . 1 2 Utility 12 | . 3 4 4 1 Device 3 | . . . 2 1 Storage 1 | . 1 . . . Processor 2 | . . . 2 . Hackware . | . . . . . Protection 6 | . 2 4 . . Artifact . | . . . . . Weapon 24 | 2 1 11 6 4 Energy Gun 7 | 2 . 3 . 2 Energy Cannon 3 | . . 1 2 . Ballistic Gun 5 | . . 1 2 2 Ballistic Cannon . | . . . . . Launcher 9 | . 1 6 2 . Special Weapon . | . . . . . Impact Weapon . | . . . . . Slashing Weapon . | . . . . . Piercing Weapon . | . . . . . Special Melee Weapon . | . . . . . Unidentified Prototypes 5 | . . 4 . 1 Parts Lost 29 | . . 1 14 14 Power 5 | . . . 1 4 Propulsion 9 | . . 1 3 5 Utility 5 | . . . 5 . Weapon 10 | . . . 5 5 Highest Loss Streak 7 | . . 1 7 6 To Critical Strikes . | . . . . . Average Slot Usage (%) 76 | . 74 93 86 34 Engine 8 | . 14 11 6 . Core 1 | . . . . 8 Leg 16 | . 28 19 14 . Device 1 | . . . 4 2 Storage 8 | . 12 11 9 . Processor 4 | . . . 11 7 Protection 17 | . 5 33 23 . Energy Gun 4 | . 1 4 5 4 Ballistic Gun 3 | . . 4 7 3 Launcher 6 | . 13 9 2 . Naked Turns . | . . . . . Heaviest Build 26 | 7 10 26 23 17 Greatest Support 20 | 20 20 20 20 16 Greatest Overweight (x) 4 | . . 1 4 4 Average Overweight (x) . | . . . . . Largest Inventory Capacity 5 | 5 5 5 5 5 Average Capacity 5 | 5 5 5 5 5 Most Carried 5 | 5 4 5 4 5 Average Carried 2 | 1 1 4 2 1 Final Capacity 5 | 5 5 5 5 5 Final Carried 4 | 1 4 4 . 2 Class Distribution -------------------- 94% | Mutant 3% | Scavenger-Mutant Dominant Class ---------------- Mutant | -10/Materials Mutant | -9/Materials Mutant | -8/Materials Mutant | -7/Factory Resources | -11 -10 -9 -8 -7 ----------- Run | Yrd Mat Mat Mat Fac Matter Collected 1317 | 192 174 652 107 192 Remotely . | . . . . . Salvage Created 1521 | . 240 768 229 284 Parts 111 | . 20 46 28 17 Haulers Intercepted 3 | . 1 1 . 1 Recyclers Shooed . | . . . . . Parts Field Recycled . | . . . . . Retrieved Matter . | . . . . . Parts Self-Destructed . | . . . . . Prevented . | . . . . . Kills | -11 -10 -9 -8 -7 ------- Run | Yrd Mat Mat Mat Fac Combat Hostiles Destroyed 35 | . 6 13 9 7 Melee 1 | . . . . 1 Guns 10 | . . 5 . 5 Cannons 1 | . . . 1 . AOE 22 | . 6 8 8 . Classes Destroyed 9 | . 6 3 . . Worker 7 | . . 3 4 . Builder 6 | . 1 . 5 . Tunneler 3 | . 1 . 2 . Hauler 3 | . 1 1 . 1 Recycler 5 | . 1 4 . . Watcher 5 | . 1 2 2 . Swarmer 13 | . . 4 3 6 Grunt 17 | . 6 5 6 . Sentry 5 | . . 4 . 1 Best Kill Streak 11 | . 5 6 11 3 Combat Bots Only 5 | . 3 4 5 2 Max Kills in Single Turn 4 | . 2 4 4 1 Gunslinging . | . . . . . Exploded 4 | . 2 4 2 . Melee 1 | . . . . 1 Uniques/NPCs Destroyed . | . . . . . Combat | -11 -10 -9 -8 -7 -------- Run | Yrd Mat Mat Mat Fac Hostile Shots Fired 388 | . 14 24 84 266 Missed 134 | . 6 10 16 102 Damage Taken 3108 | . 174 311 1093 1530 Core 1006 | . 21 62 221 702 Absorbed by Shields . | . . . . . Redirected to Shielding 173 | . 4 37 132 . Core Remaining (%) 83 | 100 91 84 59 . Volleys Fired 120 | . 23 33 31 33 Largest 2 | . 1 2 2 2 Hottest 122 | . 30 72 92 122 Shots Fired 184 | . 23 57 58 46 Gun 118 | . . 42 30 46 Cannon 11 | . . . 11 . Launcher 55 | . 23 15 17 . Special . | . . . . . Kinetic 59 | . . 17 20 22 Thermal 24 | . . . . 24 Explosive 55 | . 23 15 17 . Electromagnetic 46 | . . 25 21 . Robot Hit Streak 14 | . 2 8 10 14 Robot Miss Streak 3 | . 2 3 2 2 Penetration Max . | . . . . . Secondary Targets 1 | . . . . 1 Max Gunslinging Chain 1 | . . . . 1 Shots Hit Robots 99 | . 2 29 32 36 Core Hits 109 | . 27 33 33 16 Critical Kills 1 | . . . . 1 Critical Parts Destroyed . | . . . . . Critical Strikes 3 | . . . . 3 Burn 2 | . . . . 2 Destroy 1 | . . . . 1 Melee Attacks . | . . . . . Impact . | . . . . . Slashing . | . . . . . Piercing . | . . . . . Sneak Attacks . | . . . . . Combat Hostiles . | . . . . . Follow-up Attacks . | . . . . . Damage Inflicted 4482 | . 749 1120 2043 570 Guns 1185 | . . 380 272 533 Cannons 72 | . . . 72 . Explosions 3188 | . 749 740 1699 . Melee . | . . . . . Ramming 37 | . . . . 37 Kinetic 544 | . . 173 183 188 Thermal 581 | . . . 236 345 Explosive 2952 | . 749 740 1463 . Electromagnetic 368 | . . 207 161 . Impact . | . . . . . Slashing . | . . . . . Piercing . | . . . . . Highest Corruption . | . . . . . Average Corruption . | . . . . . Corruption Purged . | . . . . . Corruption Blocked . | . . . . . Overload Shots . | . . . . . Overflow Damage 53 | . 8 7 38 . Projectiles . | . . . . . Explosions 53 | . 8 7 38 . Melee . | . . . . . Knockbacks . | . . . . . Impact . | . . . . . Kinetic . | . . . . . Secondary . | . . . . . Self-Inflicted Damage 346 | . 74 154 103 15 Shots 17 | . 6 7 4 . Rammed 11 | . . . . 11 Targets Rammed 11 | . . . . 11 Kicked . | . . . . . Crushed . | . . . . . Highest Temperature 229 | . 8 33 83 229 Average Temperature 39 | . 3 9 26 72 Received Heat Transfer 879 | . 57 75 621 126 Siege Activations . | . . . . . Robots Corrupted . | . . . . . Combat Hostiles . | . . . . . Parts Fried . | . . . . . Impact Corruptions . | . . . . . Robots Melted 1 | . . . . 1 Combat Hostiles 1 | . . . . 1 Parts Melted 2 | . . . . 2 Heat Transferred 1038 | . . . 150 888 Parts Sabotaged . | . . . . . Parts Stolen . | . . . . . Parts Stripped . | . . . . . Power Chain Reactions . | . . . . . Alert | -11 -10 -9 -8 -7 ------- Run | Yrd Mat Mat Mat Fac Peak Influence 567 | . 310 508 567 232 Initial 169 | . . 59 169 140 Average 200 | . 75 265 269 201 Maximum Alert Level 2 | . 1 2 2 1 Low Security (%) 52 | 100 87 33 53 26 Level 1 36 | . 12 42 30 73 Level 2 10 | . . 23 15 . Level 3 . | . . . . . Level 4 . | . . . . . Level 5 . | . . . . . High Security . | . . . . . Max Security . | . . . . . Squads Dispatched 10 | . 1 3 3 3 Investigation 2 | . . 1 1 . Extermination . | . . . . . Reinforcement 5 | . 1 2 2 . Assault . | . . . . . Garrison 3 | . . . . 3 Intercept . | . . . . . Searches Triggered . | . . . . . Construction Impeded 2 | . . 1 1 . Haulers Reinforced . | . . . . . Active Scanning Responses . | . . . . . Cargo Convoy Interrupts . | . . . . . Stealth | -11 -10 -9 -8 -7 --------- Run | Yrd Mat Mat Mat Fac Distress Signals 3 | . 2 1 . . Communications Jammed . | . . . . . Distress Signals . | . . . . . Times Spotted 60 | . 10 17 22 11 Peak Tracking Total 5 | . 3 4 5 4 Tactical Retreats 1 | . . . 1 . Traps | -11 -10 -9 -8 -7 ------- Run | Yrd Mat Mat Mat Fac Traps Triggered 1 | . . . 1 . Indirectly . | . . . . . Trap Hack Attempts . | . . . . . Triggered . | . . . . . Disarmed . | . . . . . Reprogrammed . | . . . . . Reused . | . . . . . Traps Extracted . | . . . . . Installed . | . . . . . Triggered . | . . . . . Machines | -11 -10 -9 -8 -7 ---------- Run | Yrd Mat Mat Mat Fac Machines Disabled 19 | . 6 10 3 . Max in Single Turn 2 | . 2 2 2 . Machines Repaired . | . . . . . Machines Dismantled . | . . . . . Machines Sabotaged . | . . . . . Overloaded Fab Kills . | . . . . . Hacking | -11 -10 -9 -8 -7 --------- Run | Yrd Mat Mat Mat Fac Machines Accessed 7 | . 3 2 2 . Terminals 5 | . 3 1 1 . Fabricators . | . . . . . Repair Stations . | . . . . . Recycling Units . | . . . . . Scanalyzers 2 | . . 1 1 . Garrison Access . | . . . . . Total Hacks 24 | . 7 11 6 . Successful 16 | . 3 10 3 . Failed 8 | . 4 1 3 . Catastrophic 2 | . 1 1 . . Database Lockouts . | . . . . . Manual 8 | . 3 1 4 . Terminals 17 | . 7 5 5 . Fabricators . | . . . . . Repair Stations . | . . . . . Recycling Units . | . . . . . Scanalyzers 7 | . . 6 1 . Garrison Access . | . . . . . Terminal Hacks 10 | . 3 4 3 . Record 4 | . . 1 3 . Alert Level 2 | . 1 1 . . Unreport Threat 1 | . . 1 . . Dispatch Records 2 | . 1 1 . . Zone Layout 1 | . 1 . . . Fabricator Hacks . | . . . . . Repair Station Hacks . | . . . . . Recycling Unit Hacks . | . . . . . Scanalyzer 6 | . . 6 . . Insert Component 3 | . . 3 . . Analyze 3 | . . 3 . . Garrison Access Hacks . | . . . . . Unauthorized Hacks . | . . . . . Terminals . | . . . . . Fabricators . | . . . . . Repair Stations . | . . . . . Recycling Units . | . . . . . Scanalyzers . | . . . . . Garrison Access . | . . . . . Data Cores Recovered . | . . . . . Used . | . . . . . Hacking Detections 5 | . 2 1 2 . Full Trace Events 1 | . . 1 . . Feedback Events . | . . . . . Feedback Blocked . | . . . . . Robot Schematics Acquired . | . . . . . Robots Built . | . . . . . Authchips . | . . . . . Time . | . . . . . Total Robot Build Rating . | . . . . . Part Schematics Acquired 3 | . . 3 . . Parts Built . | . . . . . Authchips . | . . . . . Time . | . . . . . Total Part Build Rating . | . . . . . Parts Repaired . | . . . . . Time . | . . . . . Parts Recycled . | . . . . . Recycled Matter . | . . . . . Retrieved Matter . | . . . . . Retrieved Components . | . . . . . Parts Scanalyzed 3 | . . 3 . . Part Schematics Acquired 3 | . . 3 . . Parts Damaged . | . . . . . Bothacking | -11 -10 -9 -8 -7 ------------ Run | Yrd Mat Mat Mat Fac Used RIF Installer . | . . . . . Robots Hacked . | . . . . . Non-combat . | . . . . . Combat . | . . . . . Robot Hacks Applied . | . . . . . Relay Couplers Released . | . . . . . Fabnet Peak Effective % . | . . . . . Robots Rewired . | . . . . . Allies Hacked . | . . . . . Hacks Repelled . | . . . . . Allies | -11 -10 -9 -8 -7 -------- Run | Yrd Mat Mat Mat Fac Total Allies . | . . . . . Largest Group . | . . . . . Highest-Rated Group . | . . . . . Highest-Rated Ally . | . . . . . Total Orders . | . . . . . Ally Attacks . | . . . . . Total Damage . | . . . . . Kills . | . . . . . Allies Corrupted . | . . . . . Allies Melted . | . . . . . Intel | -11 -10 -9 -8 -7 ------- Run | Yrd Mat Mat Mat Fac Robot Analysis Total . | . . . . . Derelict Logs Recovered . | . . . . . Drone Launches . | . . . . . Drone Recoveries . | . . . . . Exploration | -11 -10 -9 -8 -7 ------------- Run | Yrd Mat Mat Mat Fac Turns Passed 1715 | 44 433 503 432 303 Spaces Moved 965 | 39 223 278 212 213 Core 83 | 19 . . 9 55 Treads . | . . . . . Legs 708 | 20 223 278 187 . Wheels . | . . . . . Hover 71 | . . . . 71 Flight 103 | . . . 16 87 Fastest Speed 32 | 50 120 120 40 32 Average Speed 121 | 85 120 132 150 86 Slowest Speed 275 | 120 120 190 260 275 Overloaded Moves . | . . . . . Propulsion Burnouts . | . . . . . Robots Hopped . | . . . . . Cave-ins Triggered . | . . . . . Exploration Rate (%) 20 | 3 42 34 19 4 Regions Visited 4 Branch Regions . Pre-discovered Areas . | . . . . . Known Exits Taken . | . . . . . Unknown Exits Taken 4 | 1 1 1 1 . Scrap Searched . | . . . . . Spaces Dug 15 | . 4 11 . . Terrain Destroyed 316 | . 73 118 125 . Melee . | . . . . . Projectile . | . . . . . AOE 316 | . 73 118 125 . Terrain Rammed . | . . . . . Walls Destroyed . | . . . . . Machines Disabled . | . . . . . Actions | -11 -10 -9 -8 -7 --------- Run | Yrd Mat Mat Mat Fac Total 1342 | 49 370 366 265 292 Wait 102 | . 102 . . . Move 961 | 38 222 277 211 213 Hop . | . . . . . Pick Up 57 | 6 10 17 7 17 Fast Attach . | . . . . . Attach 51 | 5 4 16 12 14 Detach 15 | . 3 8 3 1 Swap 3 | . . 2 . 1 Drop 22 | . 6 13 1 2 Fire 120 | . 23 33 31 33 Melee . | . . . . . Ram 11 | . . . . 11 Kick . | . . . . . Crush . | . . . . . Escape Stasis . | . . . . . Rewire . | . . . . . Trap . | . . . . . Miscellaneous . | . . . . . Route ------- -11/Scrapyard -10/Materials -9/Materials (discovered 2 exits: *Mat / [*Min]) -8/Materials -7/Factory History --------- Turn | Location | Event 27 | -11/Scrapyard | Discovered new exit (range 14) 45 | -11/Scrapyard | Entered Materials 325 | -10/Materials | Build established: Mutant 423 | -10/Materials | Discovered new exit (range 14) 478 | -10/Materials | Entered another Materials area 478 | -9/Materials | Evolved 2 slots: Utility x2 701 | -9/Materials | Discovered new exit (range 7) 959 | -9/Materials | Discovered new exit (range 14) 981 | -9/Materials | Entered another Materials area 981 | -8/Materials | Evolved 2 slots: Utility x2 1191 | -8/Materials | Discovered new exit (range 16) 1308 | -8/Materials | Lost 5 parts (1n2u2w) 1413 | -8/Materials | Entered Factory 1413 | -7/Factory | Evolved 2 slots: Power x1, Weapon x1 1430 | -7/Factory | Lost 7 parts (1n3u3w) 1452 | -7/Factory | Garrison activated, responded to threat 1491 | -7/Factory | Lost 3 parts (1n2w) 1575 | -7/Factory | Core integrity fell below 50% 1610 | -7/Factory | Lost 5 parts (2p2n1w) 1683 | -7/Factory | Core integrity fell below 20% 1716 | -7/Factory | Destroyed by S-27 Virus with Autogun Last Messages --------------- 01587_ Acquired 27 matter. 01589_ Acquired Lgt. Nuclear Core. 01590_ K-01 Serf collects debris. 01595_ R-06 Scavenger collects VTOL Module. 01598_ K-01 Serf cleans the Fusion Modulator. 01606_ Connecting with Scanalyzer... 01606_ Current location identified: Factory 01612_ Acquired Lgt. Nuclear Core. 01621_ Dropped Faulty Prc. Beam Rifle. 01634_ Airjet destroyed. 01640_ Prc. Beam Rifle destroyed. 01656_ Airjet destroyed. 01657_ Y-54 Guardian suffers critical hit (Burn). 01659_ Y-54 Guardian destroyed. 01679_ Prc. Beam Rifle destroyed. 01685_ Lgt. Nuclear Core destroyed. 01714_ Acquired Broken Gatling Laser. 01715_ Acquired Imp. Light Armor Plating. Map ----- +----------------------------------------------------+ | ???????????????????????# #?????????????????? | | ???????????????????????# #?????????????????? | | ???????????????????????# #?????????????????? | | ???????????????????????# #?????????????????? | | ???????????????????????# #?????????????????? | | ???????????????????????# #?????????????????? | | ???????????????????????# #????????#????????? | | ???????????????????????# #??????? #????????? | | ???????????????????????# #??????? #?????#??? | | ???????????????????????# ######## ##### #??? | | ???????????????????????# !! #??? | | ?????????????###+#######+## #### | | ?????????????# #=!! | | ?????????????# """ """ # | | ?????????????# """ """ # ""G""%= """"""????? | | ?????????????# """ """ # " " [%== """""?????? | | ?????????????# # == """""?????? | | ?????????????# """ """ # == """""?????? | | ?????????????#""" """ """ # ??? | | ?????????????#""" """ """ + | | ?????????????#"S # ############## | | ?????????????#""" # #??????????????? | | ?????????????# "" # #????????????????? ? | | ?????????????# # #??????????????????? | | +######+##########+#+###### #??????????????????? | | @ #??????????????????? | | %= #??????????????????? | | ! #??????????????????? | | #??????????????????? | | #??????????????????? | | ??#####+#############+###s #??????????????????? | | ???????????# [ # #??????????????????? | | ???????????# """"""""" # s #??????????????????? | | ???????????# # #??????????????????? | | ???????????# """"""""" # s #??????????????????? | | ???????????# # #??????????????????? | | ???????????############## #??????????????????? | | ?????????????????# #??????????????????? | | ?????????????????# ##########/#???????? | | ?????????????????# ! "???????? | | ?????????????????# "???????? | | ?????????????????# ??????? | | ?????????????????# ??????? | | ?????????????????# ??????? | | ?????????????????##########+########### "???????? | | ?????????????????????# #??????????????? | | ?????????????????????# #??????????????? | | ?????????????????????# """ """ #??????????????? | | ?????????????????????# """ """ #??????????????? | | ?????????????????????# """ """ #??????????????? | +----------------------------------------------------+ Best States ------------- Heat Dissipation 34 Energy Generation 23 Energy Capacity 280 Matter Stores 423 Matter Capacity 450 Sight Range 18 Terrain Scan Range 16 Terrain Scan Density 10 ECM Strength 2 Armor Coverage 80 Weapon Shielding 33 Evasion (%) 62 Targeting Accuracy 6 Item Schematics ----------------- Targeting Computer | -9/Materials | Scanalyzed Weapon Shielding | -9/Materials | Scanalyzed Grenade Launcher | -9/Materials | Scanalyzed Robot Schematics ------------------ None Fabricated ------------ Nothing Alien Tech Used ----------------- None Achievements -------------- None Challenges ------------ None Game ------ Seed SeismicElectronRail Manual? 0 Play Time 00:27:01 Cumulative 11.1 hours Start 2024.03.31 @ 07:26:40 End 2024.03.31 @ 07:51:54 Sessions 1 Manual Loads 0 Difficulty Rogue Special Mode None Game No. 32 Rogue 32 Adventurer 0 Explorer 0 Win Type - Total 0 Types 0/0/0/0/0/0/0/0/0 Lore% 18 Gallery% 23 Achievement% 22 Wizard Run 0 Options --------- Layout 1 ASCII 0 Keyboard 1 Movement Numpad Keybinds 0 Fullscreen 1 Font 32/SmallcapsGlow Map View 50x35 Zoom Use 0% Tactical HUD 1 Map Filters NONE Filters NONE Steam 1 RUN: 6747a0a7-570c-4fda-b73f-e248812eeea5